Cogmind - Beta 12 *** ADVENTURER MODE // 2023.04.15 @ 14:52:22 Player: C23 Result: Destroyed by 5H-0N1(z) with Zionite Laser-S Performance ------------- Evolutions (1) 500 Regions Visited (5) 1000 Robots Destroyed (24) 120 Value Destroyed (778) 778 Prototype IDs (3) 60 Alien Tech Used (0) 0 Bonus (1637) 1637 TOTAL SCORE: 4095 Bonus ------- Follower Combat Kills 37 Met Imprinter 300 Was Imprinted 300 Destroyed Z-Imprinter 1000 Cogmind --------- Core Integrity 0/400 Matter 295/300 Energy 100/100 System Corruption 0% Temperature Cool (9) Movement Core (150) Ox2 Location -7/Deep Caves Parts ------- > --- POWER (2) -------- (None) > --- PROPULSION (2) --- (None) > --- UTILITY (3) ------ Hacking Drone Bay (0/1) > --- WEAPON (2) ------- RU-N14's Throwing Claymores > --- INVENTORY (5) ---- CR-A16's Pointy Stick Self-destruct Interrupter (50) GAL Module Peak State ------------ > --- POWER ------------ Light Ion Engine Light Angular Momentum Engine > --- PROPULSION ------- Compact Wheel Compact Wheel > --- UTILITY ---------- Improved Terrain Scanner Improved Light Armor Plating Hacking Drone Bay > --- WEAPON ----------- Improved Medium Laser RU-N14's Throwing Claymores > --- INVENTORY -------- Light Ion Engine Flight Unit CR-A16's Pointy Stick Self-destruct Interrupter GAL Module [Rating: 34] Favorites ----------- Power Light Ion Engine Engine Light Ion Engine Propulsion Compact Wheel Wheel Compact Wheel Hover Unit Combat Airjet Flight Unit Flight Unit Utility Improved Light Armor Plating Device Improved Terrain Scanner Processor Improved Targeting Computer Protection Improved Light Armor Plating Weapon Improved Medium Laser Energy Gun Improved Medium Laser Energy Cannon Light EM Pulse Cannon Launcher Grenade Launcher Special Weapon RU-N14's Throwing Claymores Piercing Weapon CR-A16's Pointy Stick Build | -11 -10 -9 -9 -7 -7 ------- Run | Jun Mat Mat Min Zio Dee Slots Evolved 2 | . . 2 . . . Power 1 | . . 1 . . . Propulsion . | . . . . . . Utility 1 | . . 1 . . . Weapon . | . . . . . . Parts Attached 59 | 4 8 9 25 10 3 Power 12 | 1 1 . 8 1 1 Engine 12 | 1 1 . 8 1 1 Core . | . . . . . . Reactor . | . . . . . . Propulsion 23 | 2 2 . 11 6 2 Treads . | . . . . . . Leg . | . . . . . . Wheel 8 | 2 . . 4 2 . Hover 2 | . . . 2 . . Flight 13 | . 2 . 5 4 2 Utility 11 | . 1 6 3 1 . Device 9 | . 1 5 2 1 . Storage . | . . . . . . Processor 1 | . . 1 . . . Hackware . | . . . . . . Protection 1 | . . . 1 . . Artifact . | . . . . . . Weapon 13 | 1 4 3 3 2 . Energy Gun 9 | 1 3 2 3 . . Energy Cannon 1 | . . 1 . . . Ballistic Gun . | . . . . . . Ballistic Cannon . | . . . . . . Launcher 1 | . 1 . . . . Special Weapon 1 | . . . . 1 . Impact Weapon . | . . . . . . Slashing Weapon . | . . . . . . Piercing Weapon 1 | . . . . 1 . Special Melee Weapon . | . . . . . . Unidentified Prototypes 3 | . 1 . . 2 . Parts Lost 16 | . . . 7 . 9 Power 4 | . . . 2 . 2 Propulsion 7 | . . . 3 . 4 Utility 3 | . . . 1 . 2 Weapon 2 | . . . 1 . 1 Highest Loss Streak 7 | . . . 5 . 7 To Critical Strikes . | . . . . . . Average Slot Usage (%) 89 | . 69 69 72 95 85 Engine 17 | . 14 11 13 18 17 Wheel 19 | . 22 . 9 21 19 Flight 2 | . 5 22 8 . . Device 19 | . 1 11 16 22 17 Protection 9 | . . . 6 11 9 Energy Gun 11 | . 18 11 8 11 9 Special Weapon 2 | . . . . 2 11 Piercing Weapon 5 | . . . . 7 . Naked Turns . | . . . . . . Heaviest Build 28 | 7 10 11 17 22 28 Greatest Support 32 | 32 32 8 32 32 32 Greatest Overweight (x) 2 | 2 1 1 1 . 2 Average Overweight (x) . | . . . . . . Largest Inventory Capacity 5 | 5 5 5 5 5 5 Average Capacity 5 | 5 5 5 5 5 5 Most Carried 5 | 2 5 5 5 5 5 Average Carried 4 | . 1 3 3 4 4 Final Capacity 5 | 5 5 5 5 5 5 Final Carried 5 | . 4 4 4 5 3 Class Distribution -------------------- 54% | Scavenger-Mutant 45% | Mutant Dominant Class ---------------- Mutant | -10/Materials Mutant | -9/Materials Mutant | -9/Mines Scavenger-Mutant | -7/Zion Mutant | -7/Deep Caves Resources | -11 -10 -9 -9 -7 -7 ----------- Run | Jun Mat Mat Min Zio Dee Matter Collected 770 | 195 50 147 263 62 53 Remotely . | . . . . . . Salvage Created 902 | . 50 147 504 . 201 Parts 64 | . 7 6 36 . 15 Haulers Intercepted . | . . . . . . Recyclers Shooed . | . . . . . . Parts Field Recycled . | . . . . . . Retrieved Matter . | . . . . . . Parts Self-Destructed 4 | . . . . 4 . Prevented . | . . . . . . Kills | -11 -10 -9 -9 -7 -7 ------- Run | Jun Mat Mat Min Zio Dee Combat Hostiles Destroyed 24 | . 3 3 13 . 5 Guns 14 | . 3 3 8 . . Cannons 6 | . . . 5 . 1 AOE 4 | . . . . . 4 Classes Destroyed 6 | . 1 1 3 . 1 Swarmer 7 | . 3 . 4 . . Grunt 7 | . . 3 4 . . Duelist 1 | . . . 1 . . Sentry 2 | . . . 2 . . Demolisher 2 | . . . 2 . . Z-Light 4 | . . . . . 4 Best Kill Streak 3 | . 3 2 3 . 3 Combat Bots Only 3 | . 3 2 3 . 3 Max Kills in Single Turn 2 | . 1 1 1 . 2 Gunslinging . | . . . . . . Exploded 2 | . . . . . 2 Melee . | . . . . . . Uniques/NPCs Destroyed 1 | . . . . . 1 Z-Imprinter (-7/Deep Caves) Combat | -11 -10 -9 -9 -7 -7 -------- Run | Jun Mat Mat Min Zio Dee Damage Taken 1446 | . 91 98 528 . 729 Core 411 | . 10 41 227 . 133 Absorbed by Shields . | . . . . . . Core Remaining (%) 98 | 100 96 . . . . Volleys Fired 54 | . 5 11 30 4 4 Largest 2 | . 2 2 2 2 2 Hottest 112 | . 96 80 112 56 56 Shots Fired 73 | . 10 13 36 8 6 Gun 46 | . 10 9 21 4 2 Cannon 19 | . . 4 15 . . Launcher . | . . . . . . Special 8 | . . . . 4 4 Kinetic . | . . . . . . Thermal 37 | . 5 5 21 4 2 Explosive 8 | . . . . 4 4 Electromagnetic 28 | . 5 8 15 . . Robot Hit Streak 41 | . 2 14 41 . 1 Robot Miss Streak 4 | . 4 . 1 . 2 Penetration Max . | . . . . . . Secondary Targets 1 | . 1 . . . . Max Gunslinging Chain 1 | . 1 . . . . Shots Hit Robots 51 | . 3 12 34 . 2 Core Hits 37 | . 3 5 21 . 8 Critical Kills . | . . . . . . Critical Parts Destroyed . | . . . . . . Critical Strikes 2 | . . . 1 . 1 Burn 1 | . . . 1 . . Sever 1 | . . . . . 1 Melee Attacks . | . . . . . . Impact . | . . . . . . Slashing . | . . . . . . Piercing . | . . . . . . Sneak Attacks . | . . . . . . Combat Hostiles . | . . . . . . Follow-up Attacks . | . . . . . . Damage Inflicted 1550 | . 38 216 625 . 671 Guns 506 | . 38 127 324 . 17 Cannons 390 | . . 89 301 . . Explosions 528 | . . . . . 528 Melee . | . . . . . . Ramming . | . . . . . . Kinetic . | . . . . . . Thermal 442 | . 16 85 324 . 17 Explosive 528 | . . . . . 528 Electromagnetic 454 | . 22 131 301 . . Impact . | . . . . . . Slashing 126 | . . . . . 126 Piercing . | . . . . . . Highest Corruption 4 | . . . 4 4 . Average Corruption 4 | . . . 4 4 . Corruption Purged . | . . . . . . Corruption Blocked . | . . . . . . Effects 8 | . . . 8 . . Message Errors 1 | . . . 1 . . Matter Fused 2 | . . . 2 . . Heat Flow Errors 1 | . . . 1 . . Energy Discharges 1 | . . . 1 . . Data Loss (minor) 3 | . . . 3 . . Overload Shots . | . . . . . . Overflow Damage 21 | . . . . . 21 Projectiles . | . . . . . . Explosions 21 | . . . . . 21 Melee . | . . . . . . Knockbacks . | . . . . . . Impact . | . . . . . . Kinetic . | . . . . . . Secondary . | . . . . . . Self-Inflicted Damage . | . . . . . . Shots . | . . . . . . Rammed . | . . . . . . Targets Rammed . | . . . . . . Kicked . | . . . . . . Crushed . | . . . . . . Highest Temperature 250 | . 108 140 250 12 24 Average Temperature 63 | . 43 54 79 5 15 Received Heat Transfer 462 | . . 75 108 . 279 Siege Activations . | . . . . . . Robots Corrupted . | . . . . . . Combat Hostiles . | . . . . . . Parts Fried 3 | . . 1 2 . . Impact Corruptions . | . . . . . . Robots Melted . | . . . . . . Combat Hostiles . | . . . . . . Parts Melted 2 | . . . 2 . . Heat Transferred 1008 | . 37 185 777 . 9 Parts Sabotaged . | . . . . . . Parts Stolen . | . . . . . . Parts Stripped . | . . . . . . Power Chain Reactions . | . . . . . . Missiles Intercepted . | . . . . . . Alert | -11 -10 -9 -9 -7 -7 ------- Run | Jun Mat Mat Min Zio Dee Peak Influence 314 | . 88 165 314 . . Initial 54 | . . 31 54 . . Average 133 | . 28 82 212 . . Maximum Alert Level 1 | . . . 1 . . Low Security (%) 72 | 100 100 100 45 . . Level 1 27 | . . . 54 . . Level 2 . | . . . . . . Level 3 . | . . . . . . Level 4 . | . . . . . . Level 5 . | . . . . . . High Security . | . . . . . . Max Security . | . . . . . . Squads Dispatched . | . . . . . . Investigation . | . . . . . . Extermination . | . . . . . . Reinforcement . | . . . . . . Assault . | . . . . . . Garrison . | . . . . . . Intercept . | . . . . . . Searches Triggered . | . . . . . . Construction Impeded . | . . . . . . Haulers Reinforced . | . . . . . . Active Scanning Responses . | . . . . . . Cargo Convoy Interrupts . | . . . . . . Stealth | -11 -10 -9 -9 -7 -7 --------- Run | Jun Mat Mat Min Zio Dee Distress Signals 1 | . 1 . . . . Communications Jammed . | . . . . . . Distress Signals . | . . . . . . Times Spotted 43 | . 4 6 21 . 12 Peak Tracking Total 6 | . 5 3 6 . 6 Tactical Retreats 3 | . . 1 2 . . Traps | -11 -10 -9 -9 -7 -7 ------- Run | Jun Mat Mat Min Zio Dee Traps Triggered . | . . . . . . Indirectly . | . . . . . . Trap Hack Attempts . | . . . . . . Triggered . | . . . . . . Disarmed . | . . . . . . Reprogrammed . | . . . . . . Reused . | . . . . . . Traps Extracted . | . . . . . . Installed . | . . . . . . Triggered . | . . . . . . Machines | -11 -10 -9 -9 -7 -7 ---------- Run | Jun Mat Mat Min Zio Dee Machines Disabled 2 | . . . . 1 1 Max in Single Turn 1 | . . . . 1 . Machines Repaired . | . . . . . . Machines Sabotaged . | . . . . . . Overloaded Fab Kills . | . . . . . . Hacking | -11 -10 -9 -9 -7 -7 --------- Run | Jun Mat Mat Min Zio Dee Machines Accessed 4 | . 3 1 . . . Terminals 4 | . 3 1 . . . Fabricators . | . . . . . . Repair Stations . | . . . . . . Recycling Units . | . . . . . . Scanalyzers . | . . . . . . Garrison Access . | . . . . . . Total Hacks 6 | . 4 2 . . . Successful 5 | . 3 2 . . . Failed 1 | . 1 . . . . Catastrophic . | . . . . . . Database Lockouts . | . . . . . . Manual 16 | . . . . 16 . Terminals 6 | . 4 2 . . . Fabricators . | . . . . . . Repair Stations . | . . . . . . Recycling Units . | . . . . . . Scanalyzers . | . . . . . . Garrison Access . | . . . . . . Terminal Hacks 5 | . 3 2 . . . Robot Analysis 1 | . 1 . . . . Alert Level 1 | . 1 . . . . Locate Traps 1 | . 1 . . . . Investigation Status 1 | . . 1 . . . Zone Layout 1 | . . 1 . . . Fabricator Hacks . | . . . . . . Repair Station Hacks . | . . . . . . Recycling Unit Hacks . | . . . . . . Scanalyzer . | . . . . . . Garrison Access Hacks . | . . . . . . Unauthorized Hacks . | . . . . . . Terminals . | . . . . . . Fabricators . | . . . . . . Repair Stations . | . . . . . . Recycling Units . | . . . . . . Scanalyzers . | . . . . . . Garrison Access . | . . . . . . Data Cores Recovered . | . . . . . . Used . | . . . . . . Hacking Detections 1 | . 1 . . . . Full Trace Events . | . . . . . . Feedback Events . | . . . . . . Feedback Blocked . | . . . . . . Robot Schematics Acquired . | . . . . . . Robots Built . | . . . . . . Authchips . | . . . . . . Time . | . . . . . . Total Robot Build Rating . | . . . . . . Part Schematics Acquired . | . . . . . . Parts Built . | . . . . . . Authchips . | . . . . . . Time . | . . . . . . Total Part Build Rating . | . . . . . . Parts Repaired . | . . . . . . Time . | . . . . . . Parts Recycled . | . . . . . . Recycled Matter . | . . . . . . Retrieved Matter . | . . . . . . Retrieved Components . | . . . . . . Parts Scanalyzed . | . . . . . . Part Schematics Acquired . | . . . . . . Parts Damaged . | . . . . . . Bothacking | -11 -10 -9 -9 -7 -7 ------------ Run | Jun Mat Mat Min Zio Dee Used RIF Installer . | . . . . . . Robots Hacked . | . . . . . . Non-combat . | . . . . . . Combat . | . . . . . . Robot Hacks Applied . | . . . . . . Relay Couplers Released . | . . . . . . Fabnet Peak Effective % . | . . . . . . Robots Rewired . | . . . . . . Allies Hacked . | . . . . . . Hacks Repelled . | . . . . . . Allies | -11 -10 -9 -9 -7 -7 -------- Run | Jun Mat Mat Min Zio Dee Total Allies 16 | . . . . 16 . Largest Group 16 | . . . . 16 12 Highest-Rated Group 504 | . . . . 504 365 Highest-Rated Ally 51 | . . . . 51 51 Total Orders 4 | . . . . 3 1 EXPLORE 1 | . . . . . 1 RETURN 3 | . . . . 3 . Ally Attacks 48 | . . . . . 48 Total Damage 750 | . . . . . 750 Kills 9 | . . . . . 9 Allies Corrupted . | . . . . . . Allies Melted . | . . . . . . Intel | -11 -10 -9 -9 -7 -7 ------- Run | Jun Mat Mat Min Zio Dee Robot Analysis Total 1 | . 1 . . . . Derelict Logs Recovered 2 | . . . 1 1 . Drone Launches 4 | . . . . 3 1 Drone Recoveries 3 | . . . . 3 . Exploration | -11 -10 -9 -9 -7 -7 ------------- Run | Jun Mat Mat Min Zio Dee Turns Passed 4429 | 35 237 234 527 3109 287 Spaces Moved 4349 | 26 245 298 469 3045 266 Core 24 | 12 . . 6 . 6 Treads . | . . . . . . Legs . | . . . . . . Wheels 3686 | 14 158 . 211 3045 258 Hover 60 | . . . 60 . . Flight 579 | . 87 298 192 . 2 Fastest Speed 37 | 50 37 37 37 100 100 Average Speed 92 | 107 77 39 79 100 101 Slowest Speed 200 | 150 117 117 117 100 200 Overloaded Moves . | . . . . . . Propulsion Burnouts . | . . . . . . Robots Hopped 3 | . . . 3 . . Cave-ins Triggered . | . . . . . . Exploration Rate (%) 48 | 3 34 34 77 91 53 Regions Visited 5 Branch Regions 3 Pre-discovered Areas 2 | . . . . 2 . Known Exits Taken . | . . . . . . Unknown Exits Taken 5 | 1 1 1 1 1 . Scrap Searched 2 | . . . . 2 . Spaces Dug 6 | . . . . 6 . Terrain Destroyed 60 | . . . . 18 42 Melee . | . . . . . . Projectile 1 | . . . . . 1 AOE 59 | . . . . 18 41 Terrain Rammed . | . . . . . . Walls Destroyed . | . . . . . . Machines Disabled . | . . . . . . Actions | -11 -10 -9 -9 -7 -7 --------- Run | Jun Mat Mat Min Zio Dee Total 4675 | 33 281 404 581 3099 277 Wait 139 | . 5 69 35 30 . Move 4338 | 25 244 297 462 3044 266 Hop 3 | . . . 3 . . Pick Up 43 | 4 12 7 11 7 2 Fast Attach . | . . . . . . Attach 34 | 4 4 7 14 3 2 Detach 10 | . 1 4 5 . . Swap 25 | . 4 2 11 7 1 Drop 22 | . 6 7 3 4 2 Fire 54 | . 5 11 30 4 4 Melee . | . . . . . . Ram . | . . . . . . Kick . | . . . . . . Crush . | . . . . . . Escape Stasis . | . . . . . . Rewire 7 | . . . 7 . . Trap . | . . . . . . Miscellaneous . | . . . . . . Route ------- -11/Junkyard -10/Materials -9/Materials -9/Mines (discovered 2 exits: [*Mat] / *Zio) -7/Zion (discovered 2 exits: [*Dee] / [*Pro]) -7/Deep Caves (discovered 1 exit: [*Pro]) History --------- Turn | Location | Event 19 | -11/Junkyard | Discovered new exit (range 15) 36 | -11/Junkyard | Entered Materials 240 | -10/Materials | Discovered new exit (range 16) 273 | -10/Materials | Entered another Materials area 273 | -9/Materials | Evolved 2 slots: Power x1, Utility x1 300 | -9/Materials | Build established: Mutant 393 | -9/Materials | Discovered new exit (range 12) 507 | -9/Materials | Entered Mines 654 | -9/Mines | Assembled infested the area 675 | -9/Mines | Met 8R-AWN 689 | -9/Mines | Core integrity fell below 50% 717 | -9/Mines | Lost 5 parts (1p2n1u1w) 980 | -9/Mines | Learned Materials stockpile data 1026 | -9/Mines | Discovered new exit (range 5) 1030 | -9/Mines | A Derelict revealed a hidden shortcut to a safe place 1034 | -9/Mines | Entered Zion 1087 | -7/Zion | System corruption cleaned by Quarantine Array 1097 | -7/Zion | Learned location of Quarantine (-3) 1224 | -7/Zion | Found CR-A16's Pointy Stick 1248 | -7/Zion | Gained Derelict followers 1378 | -7/Zion | Imprinted 1380 | -7/Zion | Declared Zion's savior 1541 | -7/Zion | Found GAL Module 1648 | -7/Zion | Learned Factory garrison access intel 1668 | -7/Zion | Received a hallucinogenic algorithm 1727 | -7/Zion | Gained Derelict followers 1852 | -7/Zion | Discovered new exit (range 12) 2002 | -7/Zion | Given the Hacking Drone Bay 2005 | -7/Zion | Found Prototype Device 2007 | -7/Zion | Identified Hacking Drone Bay 2294 | -7/Zion | Build established: Scavenger-Mutant 2690 | -7/Zion | Found Relay Coupler [Programmer] 3419 | -7/Zion | Found Prototype Special Weapon 3420 | -7/Zion | Identified RU-N14's Throwing Claymores 4131 | -7/Zion | Discovered new exit (range 5) 4136 | -7/Zion | Saw the warning signs outside the Deep Caves entrance 4143 | -7/Zion | Entered Deep Caves 4143 | -7/Deep Caves | Accompanied by 12 allies 4282 | -7/Deep Caves | Z-Facility disabled 4317 | -7/Deep Caves | Attacked by Z-Imprinter 4329 | -7/Deep Caves | Destroyed Z-Imprinter 4418 | -7/Deep Caves | Core integrity fell below 20% 4428 | -7/Deep Caves | Discovered new exit (range 39) 4430 | -7/Deep Caves | Destroyed by 5H-0N1(z) with Zionite Laser-S Last Messages --------------- Important note for Steam players: Cogmind player global achievement rates displayed by Steam are all significantly underreported, in some cases by a huge margin, due to how they are calculated by Valve. Z-Imprinter destroyed. Acquired 53 matter. The unstable cave ceiling collapses. 51-9ZY(p) destroyed. Imp. Medium Laser destroyed. SV-8LP(z) destroyed. EU-ORJ(z) destroyed. Imp. Light Armor Plating destroyed. CW-VAO(z) suffers critical hit (Burn). Hacking Drone released from Hacking Drone Bay. Com. Wheel destroyed. CW-VAO(z) destroyed. Com. Wheel destroyed. Flight Unit destroyed. Lgt. Ion Engine destroyed. Flight Unit destroyed. 7H-0KF(i) destroyed. EXIT=FOUND Map ----- +----------------------------------------------------+ | | | | | | | | | | | ?????????????????????????????????????????????????? | | ?????????????????????????????????????????????????? | | ?????????????????????????????? ????????????????? | | ?????????????????????????????# ???# ?????????? | | ???????????????????????####??# ??# ???????? | | ?????????????????????# # ### ## ??????? | | ?????????????????? # zzz ## ?????? | | ???????????????? ?????? | | ?????????????? z ?????? | | ?????????????? = ??????? | | ?????????????# %! ??????? | | ????????????? | """"???????""" | | ????????????# """"??????"""" | | ????????????# l """"??????"""" | | ???????????? """""????""""" | | ???????????# """"???""" | | ????????????# """""?"""""""" | | ???????????## """""""""""""" | | ???????????# """""""""""""" | | ????????????# """""""""""""" | | ????????????# @ """"""""" " " | | ????????????# g """""""""%!% | | ?????????? """"""" ! | | ??????????? """""""""% | | ??????????? """"""""" | | ??????????? """"""""""" ! | | ???????????# """""""""""""% | | ???????????? """""" = | | ????????????# """""" """ | | ????????????# """""" """"" | | ?????????##### """""" """"""" | | ????????## ## """"" """"""" | | ###?????# ## """" """"""" | | # ##????# # """" """"" | | #???## """" """ | | ###### """" = | | """""""""""%* | | " """"""" | | | | ###### | | #?# | | #### | | ##??# !%* | | ####???## != | | ###???????# !%%! | +----------------------------------------------------+ Best States ------------- Heat Dissipation 28 Energy Generation 23 Energy Capacity 275 Matter Stores 300 Matter Capacity 300 Sight Range 16 Terrain Scan Range 16 Terrain Scan Density 10 Armor Coverage 150 Resistance: KI 20 Resistance: TH 20 Resistance: EX 20 Resistance: EM 20 Resistance: I 20 Resistance: S 20 Resistance: P 20 Evasion (%) 62 Targeting Accuracy 6 Offensive Hacking 10 Item Schematics ----------------- None Robot Schematics ------------------ None Fabricated ------------ Nothing Alien Tech Used ----------------- None Achievements -------------- Adventurer Are We The Baddies? I Survived The Infestation Robot Respite Signs Are For Wimps The More The Merrier The One Tourist Challenges ------------ None Game ------ Seed SubatomicEtherialFirepult Manual? 0 Play Time 01:15:37 Cumulative 4.2 hours Start 2023.04.12 @ 19:53:09 End 2023.04.15 @ 14:52:22 Sessions 3 Manual Loads 0 Difficulty Adventurer Special Mode None Game No. 7 Rogue 4 Adventurer 3 Explorer 0 Win Type - Total 0 Types 0/0/0/0/0/0/0/0/0 Lore% 6 Gallery% 8 Achievement% 5 Wizard Run 0 Options --------- ASCII 0 Keyboard 0 Movement Vi Keybinds 0 Fullscreen 1 Font 18/SmallcapsGlow Map View 112x50 Tactical HUD 0 Map Filters NONE Filters NONE Steam 1 RUN: 41f13048-fbc5-4d13-8442-0e8ab2918db0